bitfinex/quotes_BTCUSD_20250114
["timestamp","ask_amount","ask_price","bid_price","bid_amount"]
[1736870035295,0.206722,96748.0,96742.0,0.0019421]
[1736870035523,0.413445,96748.0,96742.0,0.0019421]
[1736870035922,0.001,96743.0,96742.0,0.0069421]
[1736870036219,0.002,96743.0,96742.0,0.0069421]
[1736870036452,0.413445,96748.0,96742.0,0.0019421]
[1736870036638,0.413445,96748.0,96742.0,0.0029421]
[1736870037062,0.413445,96748.0,96742.0,0.0019421]
[1736870037271,0.206732,96744.0,96742.0,0.0019421]
[1736870037478,0.206732,96744.0,96742.0,0.0039421]
[1736870038937,0.206732,96744.0,96742.0,0.0019421]
[1736870039138,0.0620173,96743.0,96742.0,0.0029421]
[1736870039615,0.0620173,96743.0,96742.0,0.0019421]
[1736870040218,0.0640173,96743.0,96742.0,0.0019421]
[1736870040419,0.002,96743.0,96742.0,0.0019421]
[1736870040655,0.003,96743.0,96742.0,0.0019421]
[1736870040999,0.001,96743.0,96742.0,0.0019421]
[1736870041443,0.003,96743.0,96742.0,0.0019421]
[1736870042073,0.002,96743.0,96742.0,0.10616902]
[1736870042275,0.003,96743.0,96742.0,0.10616902]
[1736870042431,0.003,96743.0,96742.0,0.14930902]
[1736870042634,0.001,96743.0,96742.0,0.14930902]
[1736870042835,0.001,96743.0,96742.0,0.10616902]
[1736870043416,0.206673,96772.0,96756.0,0.206705]
[1736870043417,0.20668,96768.0,96756.0,0.206705]
[1736870043538,0.206673,96772.0,96756.0,0.31093192]
[1736870043739,0.206673,96772.0,96752.0,0.206712]
[1736870043740,0.00129177,96771.0,96752.0,0.206712]
[1736870043941,0.413395,96760.0,96746.0,0.206724]
[1736870044253,0.206705,96756.0,96747.0,0.10422692]
[1736870044508,0.206703,96757.0,96743.0,0.206732]
[1736870044706,0.206703,96757.0,96743.0,0.31095892]
[1736870045372,0.206705,96756.0,96743.0,0.31095892]
[1736870045496,0.206724,96748.0,96742.0,0.0059421]
[1736870045997,0.206723,96748.0,96742.0,0.0019421]
[1736870046204,0.00129207,96756.0,96742.0,0.0019421]
[1736870046408,0.206716,96751.0,96742.0,0.0019421]
[1736870046661,0.01024712,96758.0,96742.0,0.0019421]
[1736870046662,0.413459,96745.0,96742.0,0.0019421]
[1736870046869,0.206733,96743.0,96742.0,0.0019421]
[1736870047156,0.20802533,96743.0,96742.0,0.0019421]
[1736870047352,0.35802533,96743.0,96742.0,0.0019421]
[1736870047562,0.356733,96743.0,96742.0,0.0019421]
[1736870047787,0.4459511,96743.0,96742.0,0.0019421]
[1736870048318,0.57317802,96743.0,96742.0,0.0019421]
[1736870048519,0.356733,96743.0,96742.0,0.0019421]
[1736870049120,0.3797283,96743.0,96742.0,0.0019421]
[1736870049320,0.213733,96743.0,96742.0,0.0019421]
[1736870049641,0.206719,96750.0,96742.0,0.0019421]
[1736870049819,0.004,96743.0,96742.0,0.0019421]
[1736870050017,0.002,96743.0,96742.0,0.0019421]
[1736870050442,0.004,96743.0,96742.0,0.10616902]
[1736870050643,0.004,96743.0,96742.0,0.14930902]
[1736870050819,0.00129189,96772.0,96742.0,0.14930902]
[1736870051021,0.00129189,96772.0,96753.0,0.206711]
[1736870051436,0.206684,96767.0,96753.0,0.206711]
[1736870052600,0.20669,96764.0,96743.0,0.10422692]
[1736870052835,0.20669,96764.0,96748.0,0.206722]
[1736870052974,0.20669,96764.0,96748.0,0.31094892]
[1736870053171,0.206682,96767.0,96749.0,0.20672]
[1736870053430,0.206681,96768.0,96752.0,0.206712]
[1736870053766,0.206694,96761.0,96748.0,0.04314]
[1736870053968,0.206694,96761.0,96742.0,0.0019421]
[1736870053969,0.206709,96755.0,96742.0,0.0019421]
[1736870054119,0.206701,96758.0,96743.0,0.206733]
[1736870054319,0.001292,96760.0,96742.0,0.0019421]
[1736870054498,0.206699,96759.0,96743.0,0.206733]
[1736870054701,0.206709,96755.0,96743.0,0.206733]
[1736870055102,0.206701,96758.0,96747.0,0.206722]
[1736870055304,0.206694,96762.0,96751.0,0.206714]
[1736870055512,0.206701,96759.0,96747.0,0.206723]
[1736870055712,0.001,96761.0,96751.0,0.206715]
[1736870056118,0.206694,96762.0,96751.0,0.206715]
[1736870056335,0.2630321,96762.0,96751.0,0.206715]
[1736870056601,0.15,96755.0,96742.0,0.0019421]
[1736870056777,0.001292,96754.0,96742.0,0.0019421]
[1736870057157,0.15,96750.0,96742.0,0.0019421]
[1736870057378,0.05363249,96749.0,96742.0,0.0019421]
[1736870057675,0.15,96750.0,96742.0,0.0019421]
[1736870057876,0.206724,96747.0,96742.0,0.0019421]
[1736870058256,0.206733,96743.0,96742.0,0.0019421]
[1736870059022,0.206732,96744.0,96742.0,0.0019421]
[1736870059800,0.20802414,96744.0,96742.0,0.0019421]
[1736870060019,0.206732,96744.0,96742.0,0.0019421]
[1736870060339,0.206732,96744.0,96742.0,0.0029421]
[1736870061435,0.206732,96744.0,96742.0,0.0019421]
[1736870062506,0.209732,96744.0,96742.0,0.0019421]
[1736870062708,0.210732,96744.0,96742.0,0.0019421]
[1736870064013,0.17429219,96743.0,96742.0,0.0019421]
[1736870064303,0.27851911,96743.0,96742.0,0.0019421]
[1736870064472,0.27722692,96743.0,96742.0,0.0019421]
[1736870065707,0.15,96743.0,96742.0,0.0019421]
[1736870065840,0.15329234,96743.0,96742.0,0.0019421]
[1736870066066,0.24932368,96743.0,96742.0,0.0019421]
[1736870066267,0.153,96743.0,96742.0,0.0019421]
[1736870066469,0.15429234,96743.0,96742.0,0.0019421]
[1736870066856,0.15329234,96743.0,96742.0,0.0019421]
[1736870067100,0.15129234,96743.0,96742.0,0.0019421]
[1736870067304,0.15929234,96743.0,96742.0,0.0019421]
[1736870067600,0.26070077,96743.0,96742.0,0.0019421]
[1736870067767,0.25940843,96743.0,96742.0,0.0019421]
[1736870068126,0.38663535,96743.0,96742.0,0.0019421]
[1736870068579,0.58663535,96743.0,96742.0,0.0019421]
[1736870068753,0.90383535,96743.0,96742.0,0.0019421]
[1736870069171,0.90983535,96743.0,96742.0,0.0019421]
[1736870069371,0.90583535,96743.0,96742.0,0.0019421]
[1736870069789,0.373,96739.0,96738.0,0.0008546]
[1736870069965,0.58145384,96739.0,96738.0,0.0008546]
[1736870070701,0.48145384,96739.0,96738.0,0.0008546]
[1736870070903,0.25422692,96739.0,96738.0,0.0008546]
[1736870071111,0.15,96739.0,96738.0,0.0008546]
[1736870071336,0.3302,96743.0,96738.0,0.0008546]
[1736870071545,0.005,96743.0,96739.0,0.206741]
[1736870071747,0.005,96743.0,96739.0,0.413482]
[1736870072125,0.29880803,96759.0,96739.0,0.197741]
[1736870072330,0.29880803,96759.0,96751.0,0.206716]
[1736870072331,0.09225693,96759.0,96751.0,0.206716]
[1736870072496,0.09225693,96759.0,96740.0,0.09922692]
[1736870072699,0.001,96743.0,96741.0,0.206737]
[1736870072898,0.09225693,96759.0,96748.0,0.206722]
[1736870073098,0.0001489,96759.0,96748.0,0.206722]
[1736870073295,0.0041489,96759.0,96748.0,0.206722]
[1736870073500,0.0011489,96759.0,96748.0,0.206722]
[1736870073907,0.0001489,96759.0,96748.0,0.206722]
[1736870074299,0.02083289,96759.0,96741.0,0.001]
[1736870074466,0.206712,96753.0,96741.0,0.207737]
[1736870074692,0.15129203,96752.0,96741.0,0.001]
[1736870074897,0.285935,96742.0,96741.0,0.001]
[1736870075046,0.33342692,96742.0,96719.0,0.03092247]
[1736870075253,0.20803036,96741.0,96719.0,0.03092247]
[1736870075456,0.206741,96739.0,96719.0,0.03092247]
[1736870075692,0.35803336,96739.0,96719.0,0.03092247]
[1736870075849,0.356741,96739.0,96719.0,0.03092247]
[1736870076307,0.356741,96739.0,96718.0,0.0008548]
[1736870076865,0.359741,96739.0,96718.0,0.0008548]
[1736870077213,0.359741,96739.0,96719.0,0.206783]
[1736870077424,0.359741,96739.0,96723.0,0.2076277]
[1736870077619,0.359741,96739.0,96723.0,0.2076287]
[1736870078886,0.356741,96739.0,96723.0,0.2076287]
[1736870079032,0.206741,96739.0,96727.0,0.206765]
[1736870079213,0.206741,96739.0,96738.0,0.0018546]
[1736870079810,0.01045258,96745.0,96738.0,0.0008546]
[1736870080009,0.15,96747.0,96738.0,0.0008546]
[1736870080268,0.15,96747.0,96738.0,0.0058546]
[1736870080503,0.20672,96750.0,96738.0,0.0058546]
[1736870080705,0.18150899,96754.0,96738.0,0.0038546]
[1736870080884,0.206725,96747.0,96738.0,0.0038546]
[1736870081086,0.206714,96752.0,96738.0,0.2105966]
[1736870081296,0.413428,96752.0,96738.0,0.2105966]
[1736870081476,0.206718,96750.0,96738.0,0.0038546]
[1736870081881,0.206718,96750.0,96738.0,0.0008546]
[1736870082134,0.002,96747.0,96738.0,0.10508152]
[1736870082348,0.0008551,96740.0,96739.0,0.10422692]
[1736870082907,0.0008551,96740.0,96739.0,0.22459255]
[1736870083439,0.0008551,96740.0,96739.0,0.14736692]
[1736870083641,0.0008551,96740.0,96739.0,0.15236692]
[1736870083642,0.0018551,96740.0,96739.0,0.15236692]
[1736870084010,0.0018551,96740.0,96739.0,0.16250141]
[1736870084460,0.0008551,96740.0,96739.0,0.40750141]
[1736870084682,0.0001489,96759.0,96743.0,0.2067]
[1736870084804,0.0001489,96759.0,96758.0,0.41092792]
[1736870085434,0.0001489,96759.0,96758.0,0.45406792]
[1736870085854,0.09210803,96788.0,96776.0,0.206662]
[1736870086037,0.0792,96807.0,96776.0,0.35402892]
[1736870087032,0.0008546,96814.0,96776.0,0.36302892]
[1736870087253,0.00214588,96814.0,96776.0,0.3762097]
[1736870087813,0.0008546,96814.0,96776.0,0.63671958]
[1736870087948,0.0018548,96777.0,96776.0,0.64371958]
[1736870088800,0.0018548,96777.0,96776.0,2.14371958]
[1736870088949,0.0018548,96777.0,96776.0,2.13471958]
[1736870089168,0.0018548,96777.0,96776.0,0.64371958]
[1736870089496,0.0008548,96777.0,96776.0,0.62771958]
[1736870089736,0.0018548,96777.0,96776.0,0.63371958]
[1736870089959,0.0018548,96777.0,96776.0,0.64271958]
[1736870090254,0.0008548,96777.0,96776.0,0.63671958]
[1736870090452,0.0018548,96777.0,96776.0,0.64571958]
[1736870091098,8e-07,96777.0,96776.0,0.74571958]
[1736870091692,8e-07,96777.0,96776.0,0.64571958]
[1736870093176,8e-07,96777.0,96776.0,0.74571958]
[1736870093412,8e-07,96777.0,96776.0,0.76871958]
[1736870094096,0.0008546,96814.0,96785.0,0.356643]
[1736870094285,0.0008546,96814.0,96785.0,0.43533892]
[1736870095104,0.0008546,96814.0,96785.0,0.43947792]
[1736870095716,0.02,96836.0,96813.0,0.206583]
[1736870095896,0.0001494,96836.0,96827.0,0.25]
[1736870096255,0.0001494,96836.0,96835.0,0.356536]
[1736870096379,0.0001494,96836.0,96835.0,0.31076292]
[1736870096829,0.0011494,96836.0,96835.0,0.31076292]
[1736870097256,0.0001494,96836.0,96835.0,0.31076292]
[1736870097668,0.0011494,96836.0,96835.0,0.31776292]
[1736870097844,0.0011494,96836.0,96835.0,0.3740837]
[1736870098439,0.0011494,96836.0,96835.0,0.15436692]
[1736870099466,0.0001494,96836.0,96835.0,0.14736692]
[1736870099883,0.0001494,96836.0,96835.0,0.15036692]
[1736870100088,0.0001494,96836.0,96835.0,0.15936692]
[1736870100285,0.0001494,96836.0,96835.0,0.04314]
[1736870100625,0.0001494,96836.0,96835.0,0.009]
[1736870101433,0.0001494,96836.0,96835.0,0.002]
[1736870102006,0.0001494,96836.0,96821.0,0.206565]
[1736870102166,0.15,96830.0,96786.0,0.206641]
[1736870102363,0.15,96830.0,96802.0,0.206606]
[1736870102364,0.206571,96819.0,96802.0,0.206606]
[1736870102564,0.206575,96817.0,96802.0,0.31083292]
[1736870102872,0.41315,96817.0,96802.0,0.51743892]
[1736870103196,0.206569,96820.0,96808.0,0.206593]
[1736870103395,0.0413128,96819.0,96802.0,0.10422692]
[1736870103595,0.206573,96818.0,96806.0,0.206596]
[1736870103937,0.206573,96818.0,96802.0,0.31083292]
[1736870103938,0.208575,96817.0,96802.0,0.31083292]
[1736870104145,0.20659,96810.0,96802.0,0.31083292]
[1736870104352,0.00129124,96809.0,96785.0,0.004139]
[1736870104562,0.0831,96808.0,96791.0,0.20663]
[1736870104800,0.206608,96802.0,96791.0,0.20663]
[1736870105005,0.206608,96802.0,96787.0,0.206639]
[1736870105215,0.206609,96801.0,96789.0,0.206635]
[1736870105588,0.206609,96801.0,96788.0,0.10422692]
[1736870105789,0.206598,96806.0,96788.0,0.10422692]
[1736870106015,0.206613,96800.0,96789.0,0.206635]
[1736870106237,0.2066,96805.0,96791.0,0.00179424]
[1736870106390,0.214612,96800.0,96791.0,0.00179424]
[1736870106594,0.206628,96792.0,96791.0,0.00179424]
[1736870107846,0.008,96800.0,96791.0,0.00179424]
[1736870107847,0.009,96800.0,96791.0,0.00179424]
[1736870108093,0.008,96800.0,96791.0,0.00179424]
[1736870108264,0.008,96800.0,96796.0,0.206619]
[1736870108442,0.008,96800.0,96797.0,0.05589321]
[1736870108655,0.008,96800.0,96798.0,0.31084192]
[1736870109614,0.008,96800.0,96799.0,0.25422692]
[1736870109784,0.008,96800.0,96799.0,0.35422692]
[1736870110194,0.008,96800.0,96799.0,0.25422692]
[1736870110432,0.008,96800.0,96799.0,1.91574141]
[1736870110862,0.008,96800.0,96799.0,0.45888141]
[1736870111097,3.2e-07,96806.0,96805.0,0.4796]
[1736870111355,3.2e-07,96806.0,96805.0,0.68285967]
[1736870111589,3.2e-07,96806.0,96805.0,0.78285967]
[1736870111860,0.0008544,96836.0,96835.0,0.206536]
[1736870112083,0.0008544,96836.0,96835.0,0.35390292]
[1736870112553,0.00100366,96836.0,96835.0,0.35390292]
[1736870112786,0.00100366,96836.0,96835.0,0.55994721]
[1736870113169,0.00100366,96836.0,96835.0,0.56294721]
[1736870113369,0.00100366,96836.0,96835.0,0.35690292]
[1736870113734,0.00100366,96836.0,96835.0,0.36744239]
[1736870113933,0.00100366,96836.0,96835.0,0.37544239]
[1736870114139,0.00100366,96836.0,96835.0,0.36490292]
[1736870114339,0.00100366,96836.0,96835.0,0.05414]
[1736870114900,0.44063766,96836.0,96835.0,0.05414]
[1736870115062,0.08410366,96836.0,96835.0,0.011]
[1736870115265,0.29063766,96836.0,96835.0,0.011]
[1736870115661,0.29063766,96836.0,96835.0,0.008]
[1736870116032,0.08410366,96836.0,96835.0,0.008]
[1736870116232,0.08410366,96836.0,96823.0,0.206562]
[1736870116443,0.08410366,96836.0,96803.0,0.0102226]
[1736870116658,0.08410366,96836.0,96805.0,0.15]
[1736870116915,0.206539,96834.0,96817.0,0.206574]
[1736870117141,0.206548,96830.0,96818.0,0.10422692]
[1736870117265,0.206539,96834.0,96819.0,0.206571]
[1736870117468,0.00129095,96833.0,96811.0,0.206586]
[1736870117675,0.00863496,96832.0,96812.0,0.10422692]
[1736870117876,0.20315189,96830.0,96800.0,0.206609]
[1736870118096,0.206599,96806.0,96791.0,0.00179424]
[1736870118307,0.20661,96801.0,96791.0,0.00179424]
[1736870118519,0.00129137,96800.0,96791.0,0.00179424]
[1736870118740,0.41324,96796.0,96791.0,0.04493424]
[1736870118936,0.206624,96794.0,96791.0,0.04493424]
[1736870119347,0.20669077,96794.0,96791.0,0.04493424]
[1736870119544,6.677e-05,96794.0,96791.0,0.04493424]
[1736870120123,6.677e-05,96794.0,96791.0,0.00379424]
[1736870120603,6.677e-05,96794.0,96791.0,0.00979424]
[1736870120809,6.677e-05,96794.0,96791.0,0.00379424]
[1736870121483,0.0465,96792.0,96791.0,0.00379424]
[1736870121906,0.0465,96792.0,96791.0,0.00179424]
[1736870122345,6.677e-05,96794.0,96791.0,0.00179424]
[1736870122556,0.20669077,96794.0,96791.0,0.00179424]
[1736870122740,0.206628,96792.0,96791.0,0.00179424]
[1736870122929,0.20791959,96792.0,96791.0,0.00179424]
[1736870123131,0.20991959,96792.0,96791.0,0.00179424]
[1736870123333,0.20791959,96792.0,96791.0,0.00179424]
[1736870123945,0.35791959,96792.0,96791.0,0.00179424]
[1736870124157,0.358628,96792.0,96791.0,0.00179424]
[1736870124499,0.43382118,96792.0,96791.0,0.00179424]
[1736870124697,0.356628,96792.0,96791.0,0.00179424]
[1736870125777,0.356628,96792.0,96759.0,0.00179529]
[1736870125778,0.20669,96763.0,96759.0,0.00179529]
[1736870125980,0.286694,96761.0,96759.0,0.00179529]
[1736870126212,0.15129209,96760.0,96759.0,0.00179529]
[1736870126390,0.15129208,96760.0,96759.0,0.00179529]
[1736870126758,0.15,96760.0,96759.0,0.00179529]
[1736870126961,0.15129201,96760.0,96759.0,0.00479529]
[1736870127169,0.15135874,96760.0,96759.0,0.00479529]
[1736870127363,0.15135874,96760.0,96759.0,0.00179529]
[1736870127689,0.15335874,96760.0,96759.0,0.00179529]
[1736870127897,0.17891367,96760.0,96759.0,0.00179529]
[1736870128166,0.15335874,96760.0,96759.0,0.00179529]
[1736870128368,0.00206673,96760.0,96759.0,0.00179529]
[1736870128899,0.00335871,96760.0,96759.0,0.00179529]
[1736870129094,0.00135871,96760.0,96759.0,0.00179529]
[1736870129307,0.00535871,96760.0,96759.0,0.00179529]
[1736870129733,0.00135871,96760.0,96759.0,0.00179529]
[1736870129932,0.00235871,96760.0,96759.0,0.00179529]
[1736870130100,0.00535871,96760.0,96759.0,0.00179529]
[1736870130296,0.057979,96760.0,96759.0,0.00179529]
[1736870130658,0.063979,96760.0,96759.0,0.00179529]
[1736870130828,0.04985881,96760.0,96759.0,0.00179529]
[1736870131033,0.04856673,96760.0,96759.0,0.00179529]
[1736870131232,6.673e-05,96760.0,96759.0,0.00179529]
[1736870131614,0.00106673,96760.0,96759.0,0.00179529]
[1736870132354,0.00406673,96760.0,96759.0,0.00179529]
[1736870132558,0.00106673,96760.0,96759.0,0.00179529]
[1736870132777,6.673e-05,96760.0,96759.0,0.00179529]
[1736870132936,6.673e-05,96760.0,96759.0,0.04693529]
[1736870133141,0.00106673,96760.0,96759.0,0.14916221]
[1736870133460,0.00106673,96760.0,96759.0,0.15416221]
[1736870133691,6.673e-05,96760.0,96759.0,0.15416221]
[1736870133899,6.673e-05,96760.0,96759.0,0.15116221]
[1736870134111,6.673e-05,96760.0,96759.0,0.15816221]
[1736870134511,6.673e-05,96760.0,96759.0,0.15616221]
[1736870134721,6.673e-05,96760.0,96759.0,0.15816221]
[1736870135638,6.673e-05,96760.0,96759.0,0.15116221]
[1736870135815,6.673e-05,96760.0,96759.0,0.15816221]
[1736870136024,6.673e-05,96760.0,96759.0,0.15616221]
[1736870136225,6.673e-05,96760.0,96759.0,0.38398993]
[1736870136394,6.673e-05,96760.0,96759.0,0.38698993]
[1736870136805,6.673e-05,96760.0,96759.0,0.15616221]
[1736870137029,6.673e-05,96760.0,96759.0,0.1595709]
[1736870137399,6.673e-05,96760.0,96759.0,0.15816221]
[1736870137569,6.673e-05,96760.0,96759.0,0.15616221]
[1736870137806,6.673e-05,96760.0,96759.0,0.05193529]
[1736870137990,6.673e-05,96760.0,96759.0,0.05693529]
[1736870138527,6.673e-05,96760.0,96759.0,0.04993529]
[1736870138858,6.673e-05,96760.0,96759.0,0.05893529]
[1736870139038,6.673e-05,96760.0,96759.0,0.01579529]
[1736870139252,6.673e-05,96760.0,96759.0,0.00179529]
[1736870139449,6.673e-05,96760.0,96759.0,0.00979529]
[1736870139887,6.673e-05,96760.0,96759.0,0.00379529]
[1736870140090,6.673e-05,96760.0,96759.0,0.00479529]
[1736870140537,6.673e-05,96760.0,96759.0,0.00679529]
[1736870142131,0.07536673,96760.0,96759.0,0.00679529]
[1736870142344,0.40539124,96760.0,96759.0,0.00679529]
[1736870142540,0.40409922,96760.0,96759.0,0.00679529]
[1736870142797,0.40409922,96760.0,96759.0,0.00379529]
[1736870142997,0.40409922,96760.0,96759.0,0.00179529]
[1736870143178,0.40409922,96760.0,96759.0,0.00379529]
[1736870143379,0.40409922,96760.0,96759.0,0.00279529]
[1736870143576,0.42484913,96760.0,96759.0,0.00279529]
[1736870143755,0.29341664,96760.0,96759.0,0.00179529]
[1736870143956,0.30251976,96760.0,96759.0,0.00179529]
[1736870144173,0.30451976,96760.0,96759.0,0.00179529]
[1736870144365,0.28476985,96760.0,96759.0,0.00179529]
[1736870145577,0.28276985,96760.0,96759.0,0.00179529]
[1736870145779,0.28476985,96760.0,96759.0,0.00179529]
[1736870145980,0.27466673,96760.0,96759.0,0.00179529]
[1736870146187,0.27366673,96760.0,96759.0,0.00179529]
[1736870146604,0.27466673,96760.0,96759.0,0.00179529]
[1736870146958,0.33185766,96760.0,96759.0,0.00179529]
[1736870147132,0.33485766,96760.0,96759.0,0.00179529]
[1736870147655,0.33385766,96760.0,96759.0,0.00179529]
[1736870147864,0.33485766,96760.0,96759.0,0.00179529]
[1736870148543,0.33185766,96760.0,96759.0,0.00179529]
[1736870148744,0.27166673,96760.0,96759.0,0.00179529]
[1736870149473,0.28206273,96760.0,96759.0,0.00179529]
[1736870149827,0.28306273,96760.0,96759.0,0.00179529]
[1736870150028,0.28406273,96760.0,96759.0,0.00179529]
[1736870150260,0.07636673,96760.0,96759.0,0.00179529]
[1736870150583,0.07536673,96760.0,96759.0,0.00179529]
[1736870151114,6.673e-05,96760.0,96759.0,0.00179529]
[1736870151722,0.20676273,96760.0,96759.0,0.00179529]
[1736870151917,0.2482371,96760.0,96759.0,0.00179529]
[1736870152124,0.52546402,96760.0,96759.0,0.00179529]
[1736870152979,0.48498965,96760.0,96759.0,0.00179529]
[1736870153422,0.49198965,96760.0,96759.0,0.00179529]
[1736870153583,0.49098965,96760.0,96759.0,0.00179529]
[1736870153783,0.49198965,96760.0,96759.0,0.00179529]
[1736870154224,0.49098965,96760.0,96759.0,0.00179529]
[1736870154412,0.58199249,96760.0,96759.0,0.00179529]
[1736870154930,0.58399249,96760.0,96759.0,0.00179529]
[1736870155530,0.58199249,96760.0,96759.0,0.00179529]
[1736870155736,0.71099249,96760.0,96759.0,0.00179529]
[1736870155940,0.506741,96739.0,96738.0,0.0008546]
[1736870156091,0.71096792,96739.0,96738.0,0.0008546]
[1736870156301,0.61096792,96739.0,96738.0,0.0008546]
[1736870157121,0.61196792,96739.0,96738.0,0.0008546]
[1736870157320,0.71196792,96739.0,96738.0,0.0008546]
[1736870157544,0.1,96729.0,96728.0,0.0008537]
[1736870157804,0.56228263,96729.0,96728.0,0.0008537]
[1736870157987,0.456784,96719.0,96718.0,1.8e-06]
[1736870158213,0.76381092,96719.0,96718.0,1.8e-06]
[1736870158372,0.556788,96717.0,96694.0,0.00179214]
[1736870158547,0.71775244,96717.0,96694.0,0.00179214]
[1736870158754,0.71775244,96717.0,96716.0,0.00228999]
[1736870159243,0.46101492,96717.0,96716.0,0.00228999]
[1736870159745,0.50506518,96717.0,96716.0,0.00228999]
[1736870160564,0.50706518,96717.0,96716.0,0.00228999]
[1736870160865,0.51206518,96717.0,96716.0,0.00328999]
[1736870161076,0.38483826,96717.0,96716.0,0.00328999]
[1736870161283,0.47368855,96717.0,96716.0,0.00328999]
[1736870161421,0.45263829,96717.0,96716.0,0.00328999]
[1736870162436,0.57986521,96717.0,96716.0,0.00328999]
[1736870162636,0.45263829,96717.0,96716.0,0.00328999]
[1736870162916,0.157,96717.0,96716.0,0.00328999]
[1736870163325,0.007,96717.0,96716.0,0.00328999]
[1736870164786,0.005,96717.0,96716.0,0.00328999]
[1736870165343,0.008,96717.0,96716.0,0.00328999]
[1736870165684,0.00629261,96717.0,96716.0,0.00328999]
[1736870165933,0.06327807,96717.0,96716.0,0.00328999]
[1736870166231,0.07532616,96717.0,96716.0,0.00328999]
[1736870166847,0.07632616,96717.0,96716.0,0.00328999]
[1736870167003,0.09155629,96717.0,96716.0,0.00228999]
[1736870167417,0.09155629,96717.0,96716.0,0.00528999]
[1736870167621,0.03457083,96717.0,96716.0,0.00228999]
[1736870168006,0.31179775,96717.0,96716.0,0.00228999]
[1736870168256,0.31050514,96717.0,96716.0,0.00228999]
[1736870168492,0.16504809,96717.0,96716.0,0.00228999]
[1736870168619,0.15608771,96717.0,96716.0,0.00228999]
[1736870168822,0.21205158,96717.0,96716.0,0.00228999]
[1736870169052,0.00300241,96700.0,96699.0,0.0008538]
[1736870169369,0.00300241,96700.0,96699.0,0.04426312]
[1736870170699,0.00300241,96700.0,96699.0,0.10823004]
[1736870170876,0.00300241,96700.0,96699.0,0.118817]
[1736870171061,0.00400241,96700.0,96699.0,0.126817]
[1736870171261,0.00300241,96700.0,96699.0,0.22304392]
[1736870171667,0.00400241,96700.0,96699.0,0.02164595]
[1736870171891,0.00400241,96700.0,96699.0,0.01364595]
[1736870172068,0.00400241,96700.0,96699.0,0.01064595]
[1736870172291,0.00400241,96700.0,96699.0,0.05590595]
[1736870172490,0.00400241,96700.0,96699.0,0.04626312]
[1736870172667,0.00400241,96700.0,96699.0,0.00300312]
[1736870172873,0.00400241,96700.0,96699.0,0.00100312]
[1736870173084,0.00400241,96700.0,96699.0,0.00500312]
[1736870173300,0.00500241,96700.0,96699.0,0.01400312]
[1736870173504,0.00400241,96700.0,96699.0,0.00500312]
[1736870173703,0.00400241,96700.0,96699.0,0.00100312]
[1736870173905,0.00500241,96700.0,96699.0,0.00900312]
[1736870174128,0.00500241,96700.0,96699.0,0.01100312]
[1736870174353,0.00300241,96700.0,96699.0,0.00300312]
[1736870174811,0.00300241,96700.0,96699.0,0.00700312]
[1736870175453,0.00300241,96700.0,96699.0,0.00500312]
[1736870175608,0.00300241,96700.0,96699.0,0.00600312]
[1736870176029,0.00300241,96700.0,96699.0,0.15246218]
[1736870176408,0.00300241,96700.0,96699.0,0.19572218]
[1736870176623,0.00300241,96700.0,96699.0,0.15349004]
[1736870177097,0.00300241,96700.0,96699.0,0.14949004]
[1736870177237,0.00400241,96700.0,96699.0,0.15749004]
[1736870178062,0.00300241,96700.0,96699.0,0.15877499]
[1736870178653,0.00400241,96700.0,96699.0,0.17742197]
[1736870178827,0.00400241,96700.0,96699.0,0.28564889]
[1736870179173,0.00400241,96700.0,96699.0,0.28164889]
[1736870179745,0.00300241,96700.0,96699.0,0.27864889]
[1736870179961,0.00300241,96700.0,96699.0,0.18342197]
[1736870179962,0.00400241,96700.0,96699.0,0.18342197]
[1736870180186,0.00300241,96700.0,96699.0,0.16413702]
[1736870180650,0.00400241,96700.0,96699.0,0.15749004]
[1736870180874,0.00400241,96700.0,96699.0,0.14849004]
[1736870181068,0.00400241,96700.0,96699.0,0.15749004]
[1736870181266,0.00500241,96700.0,96699.0,0.15749004]
[1736870181470,0.00400241,96700.0,96699.0,0.14849004]
[1736870181884,0.00400241,96700.0,96699.0,0.23667817]
[1736870182123,0.00400241,96700.0,96699.0,0.15349004]
[1736870182531,0.00400241,96700.0,96699.0,0.14849004]
[1736870182976,0.00400241,96700.0,96699.0,0.15349004]
[1736870183388,0.00500241,96700.0,96699.0,0.15649004]
[1736870183593,0.00300241,96700.0,96699.0,0.14849004]
[1736870183785,0.00300241,96700.0,96699.0,0.05893151]
[1736870183923,0.00400241,96700.0,96699.0,0.06793151]
[1736870184112,0.00300241,96700.0,96699.0,0.05893151]
[1736870184313,0.00300241,96700.0,96699.0,0.01567151]
[1736870184623,0.00400241,96700.0,96699.0,0.01400312]
[1736870184831,0.00300241,96700.0,96699.0,0.00600312]
[1736870185036,0.00300241,96700.0,96699.0,0.01100312]
[1736870185840,0.00300241,96700.0,96699.0,0.00600312]
[1736870186251,0.00300241,96700.0,96699.0,0.00900312]
[1736870186676,0.00300241,96700.0,96699.0,0.00600312]
[1736870187080,0.00300241,96700.0,96699.0,0.00700312]
[1736870188555,0.00479791,96700.0,96699.0,0.00700312]
[1736870188985,0.09210803,96729.0,96727.0,0.206766]
[1736870189186,0.09210803,96729.0,96728.0,0.35422692]
[1736870189530,0.0808,96763.0,96728.0,0.35422692]
[1736870189531,0.09210803,96747.0,96743.0,0.206732]
[1736870189747,0.09210803,96747.0,96736.0,0.206746]
[1736870190160,0.09210803,96747.0,96728.0,0.10422692]
[1736870190364,0.00128896,96746.0,96720.0,0.20315189]
[1736870190573,0.00128896,96746.0,96713.0,0.15]
[1736870190574,0.00128896,96746.0,96732.0,0.206756]
[1736870190719,0.00049722,96746.0,96732.0,0.206756]
[1736870190921,0.00049722,96746.0,96736.0,0.009]
[1736870191137,0.00049722,96746.0,96736.0,0.003]
[1736870191528,0.00149722,96746.0,96736.0,0.04626]
[1736870191922,0.00049722,96746.0,96736.0,0.04626]
[1736870192095,0.00128896,96745.0,96736.0,0.04626]
[1736870192334,0.00128896,96745.0,96736.0,0.003]
[1736870192468,0.00128896,96745.0,96724.0,0.206773]
[1736870192667,0.00128896,96745.0,96732.0,0.003]
[1736870192866,0.24258182,96744.0,96732.0,0.003]
[1736870193071,0.0473,96741.0,96732.0,0.003]
[1736870193302,0.00128896,96740.0,96736.0,0.009]
[1736870193497,0.00128896,96740.0,96736.0,0.001]
[1736870193694,0.413483,96739.0,96736.0,0.001]
[1736870193897,0.206746,96737.0,96736.0,0.001]
[1736870194102,0.206746,96737.0,96718.0,0.206785]
[1736870194103,0.20803496,96737.0,96718.0,0.206785]
[1736870194309,0.00128896,96736.0,96732.0,0.001]
[1736870194875,0.1973,96741.0,96732.0,0.001]